[Event "CZE-ch Youth B12 2022"]
[Site "Luhacovice"]
[Date "2022.03.13"]
[Round "2.12"]
[White "Knapek, Jan"]
[Black "Ruzicka, Oto"]
[Result "1-0"]
[ECO "C44"]
[WhiteElo "1340"]
[BlackElo "1233"]
[Annotator "NA"]
[PlyCount "43"]
[EventDate "2022.03.12"]
[EventType "swiss"]
[EventCountry "CZE"]
[SourceTitle "playchess.com"]
[Source "ChessBase"]
[SourceQuality "1"]
[TimeControl "5400+30"]

1. e4 {[%emt 0:00:05]} e5 {[%emt 0:00:11]} 2. Nf3 {[%emt 0:00:08]} Nc6 {[%emt 0:00:18]} 3. d4 {[%emt 0:00:08]} exd4 {[%emt 0:00:26]} 4. Nxd4 {[%emt 0:00:14]} Nf6 {[%emt 0:00:25]} 5. Nc3 {[%emt 0:01:11]} Bb4 {[%emt 0:00:59]} 6. Nxc6 {[%emt 0:01:58]} bxc6 {[%emt 0:00:34]} 7. Bd3 {[%emt 0:00:31]} d6 {[%emt 0:01:42]} 8. O-O {[%emt 0:01:14]} O-O {[%emt 0:01:02]} 9. h3 {[%emt 0:01:57]} Be6 {[%emt 0:02:59]} 10. Bg5 {[%emt 0:05:40]} Re8 {[%emt 0:03:38]} 11. f4 {[%emt 0:01:51]} Bc5+ {[%emt 0:05:53]} 12. Kh1 {[%emt 0:00:36]} Be3 {[%emt 0:01:06]} 13. Qe1 {[%emt 0:00:50]} Bd4 {[%emt 0:02:37]} 14. e5 {[%emt 0:02:50]} dxe5 {[%emt 0:02:54]} 15. fxe5 {[%emt 0:00:38]} h6 {[%emt 0:05:59]} 16. Bxh6 {[%emt 0:01:46]} gxh6 {[%emt 0:01:04]} 17. Rxf6 {[%emt 0:00:45]} Bd7 {[%emt 0:07:53]} 18. Qg3+ {[%emt 0:01:43]} Kf8 {[%emt 0:02:57]} 19. Qg6 {[%emt 0:05:33]} Be6 {[%emt 0:04:12]} 20. Bf5 {[%emt 0:01:14]} Ke7 {[%emt 0:07:50]} 21. Rxe6+ {[%emt 0:01:40]} fxe6 {[%emt 0:02:51]} 22. Qg7# {[%emt 0:00:29]} 1-0

[Event "CZE-ch Youth B12 2022"]
[Site "Luhacovice"]
[Date "2022.03.14"]
[Round "3.1"]
[White "Popov, Roman"]
[Black "Roubal, Matyas"]
[Result "0-1"]
[ECO "E91"]
[WhiteElo "2353"]
[BlackElo "1870"]
[Annotator "ChessBase"]
[PlyCount "126"]
[EventDate "2022.03.12"]
[EventType "swiss"]
[EventCountry "CZE"]
[SourceTitle "playchess.com"]
[Source "ChessBase"]
[SourceQuality "1"]
[TimeControl "5400+30"]

1. d4 Nf6 2. c4 g6 3. Nc3 Bg7 4. e4 d6 5. Nf3 O-O 6. Be2 Bg4 7. O-O Nfd7 8. Be3 Bxf3 9. Bxf3 Nc6 10. Be2 e5 11. d5 Nd4 12. Bxd4 exd4 13. Nb5 Nc5 14. Nxd4 Nxe4 15. Bf3 Re8 16. Re1 Qh4 17. g3 Nxg3 18. hxg3 Qxd4 19. Qxd4 Bxd4 20. Rxe8+ Rxe8 21. Rb1 f5 22. Kf1 Kg7 23. b3 Bc3 24. Rc1 Bb4 25. Rd1 Kf6 26. Bg2 a5 27. Bh1 b6 28. Bg2 Ra8 29. a4 Re8 30. Bf3 Kg5 31. Be2 Kf6 32. Rd3 Bc5 33. Bf3 h5 34. Rd2 Kg5 35. Re2 Re5 36. Kg2 f4 37. Rxe5+ dxe5 38. Be4 Kf6 39. f3 fxg3 40. Kxg3 Kg5 41. Bd3 h4+ 42. Kg2 Kf4 43. Bxg6 h3+ 44. Kxh3 Kxf3 45. Bh5+ Ke3 46. Kg2 Kd2 47. Kf1 Kc2 48. Be8 Kd2 49. Bg6 Bb4 50. Kf2 Kc3 51. Be8 Kd3 52. Bg6+ e4 53. Bf5 Kc3 54. Bxe4 Kxb3 55. Ke2 Kxa4 56. Bc2+ Ka3 57. Kd1 Kb2 58. Ba4 Kc3 59. Kc1 Kxc4 60. Bc6 Kb3 61. Bd7 a4 62. Be6 Bd6 63. Kb1 a3 0-1

[Event "CZE-ch Youth B12 2022"]
[Site "Luhacovice"]
[Date "2022.03.14"]
[Round "3.2"]
[White "Kroulik, Vaclav"]
[Black "Martirosyan, David"]
[Result "1/2-1/2"]
[ECO "C42"]
[WhiteElo "1645"]
[BlackElo "1725"]
[Annotator "NA"]
[PlyCount "81"]
[EventDate "2022.03.12"]
[EventType "swiss"]
[EventCountry "CZE"]
[SourceTitle "playchess.com"]
[Source "ChessBase"]
[SourceQuality "1"]
[TimeControl "5400+30"]

1. e4 {[%emt 0:00:05]} e5 {[%emt 0:01:22]} 2. Nf3 {[%emt 0:00:21]} Nf6 {[%emt 0:01:06]} 3. Nc3 {[%emt 0:00:16]} Bb4 {[%emt 0:00:34]} 4. a3 {[%emt 0:01:23]} Bxc3 {[%emt 0:00:38]} 5. bxc3 {[%emt 0:02:03]} O-O {[%emt 0:02:41]} 6. d3 {[%emt 0:00:56]} Nc6 {[%emt 0:01:02]} 7. Bg5 {[%emt 0:00:49]} Re8 {[%emt 0:01:19]} 8. Be2 {[%emt 0:01:45]} d6 {[%emt 0:02:36]} 9. O-O {[%emt 0:01:07]} h6 {[%emt 0:02:05]} 10. Bh4 {[%emt 0:01:09]} Bd7 {[%emt 0:08:40]} 11. Rb1 {[%emt 0:01:32]} Rb8 {[%emt 0:00:22]} 12. Nd2 {[%emt 0:01:25]} g5 {[%emt 0:02:37]} 13. Bg3 {[%emt 0:00:11]} d5 {[%emt 0:01:01]} 14. f3 {[%emt 0:06:24]} d4 {[%emt 0:02:33]} 15. cxd4 {[%emt 0:02:42]} Nxd4 {[%emt 0:00:30]} 16. c3 {[%emt 0:01:52]} Nc6 {[%emt 0:02:08]} 17. Nc4 {[%emt 0:02:18]} b5 {[%emt 0:04:06]} 18. Ne3 {[%emt 0:00:50]} Be6 {[%emt 0:01:30]} 19. Qd2 {[%emt 0:06:03]} Qd7 {[%emt 0:01:47]} 20. Rfd1 {[%emt 0:01:51]} Red8 {[%emt 0:00:06]} 21. Nc2 {[%emt 0:01:51]} Nh5 {[%emt 0:07:11]} 22. d4 {[%emt 0:01:20]} Nxg3 {[%emt 0:03:54]} 23. hxg3 {[%emt 0:00:07]} Na5 {[%emt 0:03:32]} 24. Qe3 {[%emt 0:08:22]} Nc4 {[%emt 0:11:26]} 25. Qf2 {[%emt 0:04:25]} exd4 {[%emt 0:03:50]} 26. Nxd4 {[%emt 0:04:26]} Qe8 {[%emt 0:03:08]} 27. Nxe6 {[%emt 0:09:48]} Qxe6 {[%emt 0:07:56]} 28. Qxa7 {[%emt 0:05:16]} Rdc8 {[%emt 0:06:54]} 29. Qc5 {[%emt 0:06:18]} c6 {[%emt 0:01:30]} 30. Rd4 {[%emt 0:04:54]} Na5 {[%emt 0:02:12]} 31. Qd6 {[%emt 0:03:31]} Rd8 {[%emt 0:03:33]} 32. Qxe6 {[%emt 0:01:22]} fxe6 {[%emt 0:00:05]} 33. Rbd1 {[%emt 0:00:21]} Rxd4 {[%emt 0:01:15]} 34. Rxd4 {[%emt 0:01:08]} Kf7 {[%emt 0:00:28]} 35. f4 {[%emt 0:01:09]} Kf6 {[%emt 0:00:50]} 36. Rd7 {[%emt 0:01:25]} Rb7 {[%emt 0:02:46]} 37. Rxb7 {[%emt 0:01:40]} Nxb7 {[%emt 0:00:06]} 38. c4 {[%emt 0:00:29]} bxc4 {[%emt 0:01:27]} 39. Bxc4 {[%emt 0:00:02]} Nc5 {[%emt 0:00:12]} 40. a4 {[%emt 0:06:56]} Nxa4 {[%emt 0:02:07]} 41. Kf2 {[%emt 0:00:15]} 1/2-1/2

[Event "CZE-ch Youth B12 2022"]
[Site "Luhacovice"]
[Date "2022.03.14"]
[Round "3.3"]
[White "Mikulka, Martin Michael"]
[Black "Mik, Tomas"]
[Result "1-0"]
[ECO "A44"]
[WhiteElo "1406"]
[BlackElo "1643"]
[Annotator "NA"]
[PlyCount "75"]
[EventDate "2022.03.12"]
[EventType "swiss"]
[EventCountry "CZE"]
[SourceTitle "playchess.com"]
[Source "ChessBase"]
[SourceQuality "1"]
[TimeControl "5400+30"]

1. d4 {[%emt 0:00:05]} c5 {[%emt 0:00:24]} 2. d5 {[%emt 0:00:06]} e5 {[%emt 0:00:05]} 3. e4 {[%emt 0:00:10]} d6 {[%emt 0:00:32]} 4. c4 {[%emt 0:00:06]} Nf6 {[%emt 0:00:12]} 5. Nc3 {[%emt 0:00:08]} Be7 {[%emt 0:00:05]} 6. Nf3 {[%emt 0:00:24]} Nbd7 {[%emt 0:00:54]} 7. Be2 {[%emt 0:00:36]} Nf8 {[%emt 0:00:47]} 8. O-O {[%emt 0:00:20]} Ng6 {[%emt 0:00:44]} 9. Qc2 {[%emt 0:02:40]} O-O {[%emt 0:01:06]} 10. a3 {[%emt 0:00:39]} h6 {[%emt 0:00:37]} 11. Rb1 {[%emt 0:01:44]} Nh7 {[%emt 0:01:06]} 12. b4 {[%emt 0:01:20]} b6 {[%emt 0:00:41]} 13. Be3 {[%emt 0:06:45]} f5 {[%emt 0:01:00]} 14. exf5 {[%emt 0:00:24]} Bxf5 {[%emt 0:00:14]} 15. Bd3 {[%emt 0:00:17]} Bxd3 {[%emt 0:00:39]} 16. Qxd3 {[%emt 0:00:08]} Nf4 {[%emt 0:00:47]} 17. Bxf4 {[%emt 0:00:06]} Rxf4 {[%emt 0:00:21]} 18. bxc5 {[%emt 0:03:26]} bxc5 {[%emt 0:00:11]} 19. Rb7 {[%emt 0:04:04]} Qf8 {[%emt 0:03:46]} 20. Nd2 {[%emt 0:04:41]} Bd8 {[%emt 0:09:34]} 21. Rb3 {[%emt 0:05:05]} Ng5 {[%emt 0:03:10]} 22. Ne2 {[%emt 0:10:51]} Rf6 {[%emt 0:13:55]} 23. Ng3 {[%emt 0:02:05]} Qf7 {[%emt 0:00:49]} 24. f3 {[%emt 0:00:31]} Ba5 {[%emt 0:04:46]} 25. Nde4 {[%emt 0:00:44]} Rg6 {[%emt 0:02:12]} 26. Rfb1 {[%emt 0:01:13]} Bc7 {[%emt 0:04:55]} 27. h4 {[%emt 0:07:16]} Nxe4 {[%emt 0:04:36]} 28. Nxe4 {[%emt 0:00:09]} h5 {[%emt 0:01:51]} 29. Rb7 {[%emt 0:00:45]} a5 {[%emt 0:03:05]} 30. Ng5 {[%emt 0:00:57]} Rxg5 {[%emt 0:00:51]} 31. hxg5 {[%emt 0:00:05]} g6 {[%emt 0:00:23]} 32. Qc2 {[%emt 0:02:30]} Kg7 {[%emt 0:00:29]} 33. Qa4 {[%emt 0:00:34]} h4 {[%emt 0:00:38]} 34. Qc6 {[%emt 0:00:17]} Rc8 {[%emt 0:00:17]} 35. Ra7 {[%emt 0:00:08]} h3 {[%emt 0:00:41]} 36. Rbb7 {[%emt 0:00:26]} h2+ {[%emt 0:00:13]} 37. Kh1 {[%emt 0:00:08]} e4 {[%emt 0:00:35]} 38. Rxc7 {[%emt 0:00:13]} 1-0

[Event "CZE-ch Youth B12 2022"]
[Site "Luhacovice"]
[Date "2022.03.14"]
[Round "3.4"]
[White "Delgerdalai, Bayarjavkhlan"]
[Black "Stary, Vojtech"]
[Result "1/2-1/2"]
[ECO "B76"]
[WhiteElo "2074"]
[BlackElo "1640"]
[Annotator "ChessBase"]
[PlyCount "100"]
[EventDate "2022.03.12"]
[EventType "swiss"]
[EventCountry "CZE"]
[SourceTitle "playchess.com"]
[Source "ChessBase"]
[SourceQuality "1"]
[TimeControl "5400+30"]

1. e4 {[%emt 0:00:04]} c5 {[%emt 0:00:08]} 2. Nf3 {[%emt 0:00:18]} d6 {[%emt 0:00:07]} 3. d4 {[%emt 0:00:22]} cxd4 {[%emt 0:00:04]} 4. Nxd4 {[%emt 0:00:08]} Nf6 {[%emt 0:00:06]} 5. Nc3 {[%emt 0:00:17]} g6 {[%emt 0:00:05]} 6. Be3 {[%emt 0:00:34]} Bg7 {[%emt 0:00:05]} 7. f3 {[%emt 0:00:36]} Nc6 {[%emt 0:00:07]} 8. Qd2 {[%emt 0:00:33]} O-O {[%emt 0:00:10]} 9. O-O-O {[%emt 0:00:43]} d5 {[%emt 0:00:40]} 10. exd5 {[%emt 0:00:42]} Nxd5 {[%emt 0:00:35]} 11. Nxc6 {[%emt 0:00:19]} bxc6 {[%emt 0:00:10]} 12. Bd4 {[%emt 0:00:25]} Bxd4 {[%emt 0:00:34]} 13. Qxd4 {[%emt 0:00:11]} Qb6 {[%emt 0:01:29]} 14. Na4 {[%emt 0:00:54]} Qc7 {[%emt 0:00:38]} 15. Kb1 {[%emt 0:03:19]} e5 {[%emt 0:08:11]} 16. Qc5 {[%emt 0:04:49]} Be6 {[%emt 0:05:31]} 17. Bd3 {[%emt 0:05:02]} Rfd8 {[%emt 0:08:22]} 18. g3 {[%emt 0:04:09]} Nb6 {[%emt 0:06:33]} 19. Nc3 {[%emt 0:01:32]} Nd7 {[%emt 0:04:04]} 20. Qe3 {[%emt 0:08:02]} Rab8 {[%emt 0:04:50]} 21. b3 {[%emt 0:07:15]} Qb6 {[%emt 0:11:38]} 22. Qxb6 {[%emt 0:20:38]} axb6 {[%emt 0:00:56]} 23. Be4 {[%emt 0:02:40]} Rbc8 {[%emt 0:01:37]} 24. Rd6 {[%emt 0:04:48]} c5 {[%emt 0:03:43]} 25. Rhd1 {[%emt 0:08:28]} Kf8 {[%emt 0:03:31]} 26. Na4 {[%emt 0:08:54]} Ke7 {[%emt 0:03:54]} 27. c4 {[%emt 0:05:33]} f5 {[%emt 0:02:11]} 28. Bb7 {[%emt 0:01:40]} Rb8 {[%emt 0:01:10]} 29. Ba6 {[%emt 0:01:09]} g5 {[%emt 0:05:32]} 30. Kc2 {[%emt 0:00:55]} f4 {[%emt 0:01:01]} 31. Bb5 {[%emt 0:01:02]} Bf5+ {[%emt 0:00:18]} 32. Kc1 {[%emt 0:00:55]} Nf6 {[%emt 0:02:52]} 33. Rxd8 {[%emt 0:01:34]} Rxd8 {[%emt 0:00:13]} 34. Rxd8 {[%emt 0:03:29]} Kxd8 {[%emt 0:00:10]} 35. gxf4 {[%emt 0:00:40]} exf4 {[%emt 0:00:21]} 36. Nxb6 {[%emt 0:00:43]} g4 {[%emt 0:01:04]} 37. fxg4 {[%emt 0:01:13]} f3 {[%emt 0:00:56]} 38. Bc6 {[%emt 0:01:40]} f2 {[%emt 0:01:25]} 39. Bg2 {[%emt 0:00:04]} Nxg4 {[%emt 0:07:32]} 40. Kd2 {[%emt 0:00:48]} Nxh2 {[%emt 0:00:29]} 41. Ke2 {[%emt 0:00:34]} f1=Q+ {[%emt 0:00:24]} 42. Bxf1 {[%emt 0:00:06]} Nxf1 {[%emt 0:00:13]} 43. Kxf1 {[%emt 0:00:01]} Bb1 {[%emt 0:00:57]} 44. a3 {[%emt 0:03:28]} Ba2 {[%emt 0:01:16]} 45. b4 {[%emt 0:00:12]} cxb4 {[%emt 0:02:46]} 46. axb4 {[%emt 0:00:01]} Kc7 {[%emt 0:00:51]} 47. Nd5+ {[%emt 0:00:25]} Kc6 {[%emt 0:01:51]} 48. Ne3 {[%emt 0:00:39]} Bxc4+ {[%emt 0:00:31]} 49. Nxc4 {[%emt 0:00:07]} Kb5 {[%emt 0:00:10]} 50. Ne5 {[%emt 0:00:18]} Kxb4 {[%emt 0:00:06]} 1/2-1/2

[Event "CZE-ch Youth B12 2022"]
[Site "Luhacovice"]
[Date "2022.03.14"]
[Round "3.5"]
[White "Vana, Jan"]
[Black "Knapek, Jan"]
[Result "1-0"]
[ECO "B20"]
[WhiteElo "1609"]
[BlackElo "1340"]
[Annotator "NA"]
[PlyCount "61"]
[EventDate "2022.03.12"]
[EventType "swiss"]
[EventCountry "CZE"]
[SourceTitle "playchess.com"]
[Source "ChessBase"]
[SourceQuality "1"]
[TimeControl "5400+30"]

1. e4 {[%emt 0:00:04]} c5 {[%emt 0:00:06]} 2. b3 {[%emt 0:00:08]} d6 {[%emt 0:00:23]} 3. Bb2 {[%emt 0:00:11]} Nf6 {[%emt 0:00:08]} 4. Nc3 {[%emt 0:00:37]} g6 {[%emt 0:00:17]} 5. f4 {[%emt 0:07:50]} Bg7 {[%emt 0:01:05]} 6. Bb5+ {[%emt 0:01:14]} Bd7 {[%emt 0:00:05]} 7. Bxd7+ {[%emt 0:00:33]} Nbxd7 {[%emt 0:00:14]} 8. Qf3 {[%emt 0:01:52]} Qc7 {[%emt 0:01:31]} 9. Nge2 {[%emt 0:06:46]} Qc6 {[%emt 0:00:17]} 10. O-O-O {[%emt 0:03:28]} b5 {[%emt 0:00:48]} 11. g4 {[%emt 0:05:19]} e6 {[%emt 0:05:08]} 12. d4 {[%emt 0:10:04]} c4 {[%emt 0:01:25]} 13. d5 {[%emt 0:01:48]} Qc5 {[%emt 0:01:26]} 14. dxe6 {[%emt 0:02:14]} fxe6 {[%emt 0:00:14]} 15. Nxb5 {[%emt 0:07:22]} Qxb5 {[%emt 0:06:15]} 16. Nd4 {[%emt 0:02:28]} Qb6 {[%emt 0:05:44]} 17. Nxe6 {[%emt 0:01:58]} Bf8 {[%emt 0:00:21]} 18. e5 {[%emt 0:04:31]} Rc8 {[%emt 0:02:38]} 19. exf6 {[%emt 0:01:40]} Kf7 {[%emt 0:00:28]} 20. Ng5+ {[%emt 0:00:44]} Ke8 {[%emt 0:01:15]} 21. Rhe1+ {[%emt 0:02:18]} Kd8 22. Ne6+ Ke8 {[%emt 0:02:31]} 23. f7+ {[%emt 0:01:16]} Ke7 {[%emt 0:00:44]} 24. Nxf8+ {[%emt 0:12:17]} Kxf8 {[%emt 0:00:39]} 25. Re8+ {[%emt 0:02:00]} Kxf7 {[%emt 0:00:56]} 26. Rxh8 {[%emt 0:00:27]} Rc7 {[%emt 0:01:25]} 27. Qd5+ {[%emt 0:00:33]} Ke7 {[%emt 0:00:44]} 28. Re1+ {[%emt 0:00:31]} Ne5 {[%emt 0:00:45]} 29. Rxe5+ {[%emt 0:01:32]} dxe5 {[%emt 0:00:51]} 30. Rxh7+ {[%emt 0:00:18]} Kf8 {[%emt 0:01:22]} 31. Qd8# 1-0

[Event "CZE-ch Youth B12 2022"]
[Site "Luhacovice"]
[Date "2022.03.14"]
[Round "3.6"]
[White "Mydlar, Matej"]
[Black "Krautschneider, Daniel Jan"]
[Result "0-1"]
[ECO "B77"]
[WhiteElo "1554"]
[BlackElo "1304"]
[Annotator "NA"]
[PlyCount "120"]
[EventDate "2022.03.12"]
[EventType "swiss"]
[EventCountry "CZE"]
[SourceTitle "playchess.com"]
[Source "ChessBase"]
[SourceQuality "1"]
[TimeControl "5400+30"]

1. e4 {[%emt 0:00:09]} c5 {[%emt 0:00:05]} 2. Nf3 {[%emt 0:00:09]} Nc6 {[%emt 0:00:08]} 3. d4 {[%emt 0:00:09]} cxd4 {[%emt 0:00:05]} 4. Nxd4 {[%emt 0:00:10]} g6 {[%emt 0:00:10]} 5. Nc3 {[%emt 0:00:21]} Bg7 {[%emt 0:00:05]} 6. Be3 {[%emt 0:00:07]} Nf6 {[%emt 0:00:05]} 7. Bc4 {[%emt 0:00:57]} O-O {[%emt 0:00:08]} 8. Qd2 {[%emt 0:00:51]} d6 {[%emt 0:00:08]} 9. f3 {[%emt 0:01:41]} a6 {[%emt 0:00:15]} 10. Bb3 {[%emt 0:00:23]} Bd7 {[%emt 0:00:19]} 11. h4 {[%emt 0:00:44]} b5 {[%emt 0:00:33]} 12. a3 {[%emt 0:01:18]} Qc7 {[%emt 0:00:39]} 13. O-O-O {[%emt 0:01:17]} Rab8 {[%emt 0:00:10]} 14. g4 {[%emt 0:04:40]} h5 {[%emt 0:00:44]} 15. gxh5 {[%emt 0:02:22]} Nxh5 {[%emt 0:00:07]} 16. Nd5 {[%emt 0:00:19]} Qd8 {[%emt 0:00:29]} 17. Rhg1 {[%emt 0:02:14]} a5 {[%emt 0:00:43]} 18. Nxc6 {[%emt 0:00:48]} Bxc6 {[%emt 0:00:12]} 19. Bh6 {[%emt 0:00:07]} b4 {[%emt 0:00:28]} 20. Bxg7 {[%emt 0:00:23]} Kxg7 {[%emt 0:00:24]} 21. a4 {[%emt 0:00:59]} Qd7 {[%emt 0:01:18]} 22. Ne3 {[%emt 0:02:35]} Rh8 {[%emt 0:10:11]} 23. Nf5+ {[%emt 0:00:19]} Kf8 {[%emt 0:00:14]} 24. Qd4 {[%emt 0:01:58]} Nf6 {[%emt 0:04:05]} 25. Ne3 {[%emt 0:04:21]} Bxa4 {[%emt 0:01:17]} 26. Bxa4 {[%emt 0:00:36]} Qxa4 {[%emt 0:00:35]} 27. b3 {[%emt 0:00:08]} Qc6 {[%emt 0:00:47]} 28. Nd5 {[%emt 0:01:09]} Rc8 {[%emt 0:01:03]} 29. Rg2 {[%emt 0:00:45]} e5 {[%emt 0:03:11]} 30. Qb6 {[%emt 0:02:31]} Nxd5 {[%emt 0:00:56]} 31. Qxc6 {[%emt 0:00:08]} Rxc6 {[%emt 0:00:06]} 32. Rxd5 {[%emt 0:00:05]} Ra6 {[%emt 0:00:16]} 33. Rgd2 {[%emt 0:00:44]} Ke7 {[%emt 0:00:10]} 34. Rh2 {[%emt 0:00:40]} Rh5 {[%emt 0:00:14]} 35. Kd2 {[%emt 0:00:10]} g5 {[%emt 0:00:17]} 36. Ke3 {[%emt 0:00:21]} Rxh4 {[%emt 0:00:20]} 37. Rg2 {[%emt 0:00:32]} f6 {[%emt 0:00:22]} 38. Rb5 {[%emt 0:00:32]} Rh3 {[%emt 0:03:36]} 39. Rb7+ {[%emt 0:01:54]} Ke6 {[%emt 0:00:40]} 40. Rb5 {[%emt 0:00:17]} Rh1 {[%emt 0:06:37]} 41. Rd5 {[%emt 0:02:44]} a4 {[%emt 0:01:11]} 42. bxa4 {[%emt 0:00:27]} Rxa4 {[%emt 0:00:28]} 43. Rgd2 {[%emt 0:00:23]} Ra3+ {[%emt 0:00:20]} 44. R2d3 {[%emt 0:00:57]} Rh2 {[%emt 0:00:56]} 45. Rxd6+ {[%emt 0:00:09]} Kf7 {[%emt 0:00:09]} 46. Rxa3 {[%emt 0:00:41]} bxa3 {[%emt 0:00:08]} 47. Ra6 {[%emt 0:00:04]} Rxc2 {[%emt 0:00:11]} 48. Rxa3 {[%emt 0:00:07]} Kg6 {[%emt 0:00:05]} 49. Kd3 {[%emt 0:00:12]} Rg2 {[%emt 0:00:11]} 50. Ke3 {[%emt 0:00:05]} Rb2 {[%emt 0:01:09]} 51. Ra6 {[%emt 0:00:17]} g4 {[%emt 0:01:11]} 52. Ra3 {[%emt 0:08:54]} g3 {[%emt 0:00:16]} 53. Ra1 {[%emt 0:00:06]} Kg5 {[%emt 0:00:13]} 54. Ra5 {[%emt 0:05:32]} g2 {[%emt 0:00:16]} 55. Ra1 {[%emt 0:00:41]} Kh4 {[%emt 0:00:07]} 56. f4 {[%emt 0:00:26]} Kg3 {[%emt 0:00:07]} 57. fxe5 {[%emt 0:00:23]} fxe5 {[%emt 0:00:10]} 58. Kd3 {[%emt 0:00:09]} Kh2 {[%emt 0:00:12]} 59. Ra8 {[%emt 0:00:08]} g1=Q {[%emt 0:00:16]} 60. Rh8+ {[%emt 0:00:09]} Kg2 {[%emt 0:00:09]} 0-1

[Event "CZE-ch Youth B12 2022"]
[Site "Luhacovice"]
[Date "2022.03.14"]
[Round "3.7"]
[White "Pasek, Josef"]
[Black "Kutil, Adam"]
[Result "1/2-1/2"]
[ECO "A46"]
[WhiteElo "1351"]
[BlackElo "1544"]
[Annotator "NA"]
[PlyCount "64"]
[EventDate "2022.03.12"]
[EventType "swiss"]
[EventCountry "CZE"]
[SourceTitle "playchess.com"]
[Source "ChessBase"]
[SourceQuality "1"]
[TimeControl "5400+30"]

1. d4 {[%emt 0:00:08]} Nf6 {[%emt 0:00:16]} 2. Nf3 {[%emt 0:00:23]} e6 {[%emt 0:00:44]} 3. g3 {[%emt 0:00:44]} c5 {[%emt 0:00:45]} 4. Bg2 {[%emt 0:01:00]} Be7 {[%emt 0:01:04]} 5. O-O {[%emt 0:02:23]} O-O {[%emt 0:01:25]} 6. c4 {[%emt 0:01:19]} d5 {[%emt 0:02:09]} 7. Nc3 {[%emt 0:00:30]} Nc6 {[%emt 0:01:18]} 8. cxd5 {[%emt 0:03:52]} Nxd5 {[%emt 0:01:38]} 9. Nxd5 {[%emt 0:00:32]} exd5 {[%emt 0:02:06]} 10. dxc5 {[%emt 0:00:51]} Bxc5 {[%emt 0:00:18]} 11. Qc2 {[%emt 0:01:56]} Be7 {[%emt 0:10:57]} 12. Rd1 {[%emt 0:02:55]} Be6 {[%emt 0:01:40]} 13. a3 {[%emt 0:01:27]} h6 {[%emt 0:01:57]} 14. e4 {[%emt 0:07:37]} Qa5 {[%emt 0:04:36]} 15. exd5 {[%emt 0:02:24]} Bxd5 {[%emt 0:00:27]} 16. Bd2 {[%emt 0:00:56]} Qb6 {[%emt 0:01:56]} 17. Be3 {[%emt 0:04:53]} Qb3 {[%emt 0:01:27]} 18. Qxb3 {[%emt 0:00:37]} Bxb3 {[%emt 0:00:10]} 19. Rd7 {[%emt 0:00:41]} Rab8 {[%emt 0:03:53]} 20. Bf4 {[%emt 0:01:46]} Be6 {[%emt 0:02:02]} 21. Rxe7 {[%emt 0:00:52]} Nxe7 {[%emt 0:00:14]} 22. Bxb8 {[%emt 0:00:06]} Rxb8 {[%emt 0:00:13]} 23. Rc1 {[%emt 0:01:09]} Bd5 {[%emt 0:02:22]} 24. Ne5 {[%emt 0:02:21]} Bxg2 {[%emt 0:01:12]} 25. Kxg2 {[%emt 0:00:05]} Rc8 {[%emt 0:02:57]} 26. Rd1 {[%emt 0:02:06]} Nc6 {[%emt 0:02:24]} 27. Nxc6 {[%emt 0:00:10]} Rxc6 {[%emt 0:00:07]} 28. Rd8+ {[%emt 0:00:06]} Kh7 {[%emt 0:00:08]} 29. Rd7 {[%emt 0:00:06]} Rb6 {[%emt 0:00:21]} 30. b4 {[%emt 0:00:10]} Kg6 {[%emt 0:00:21]} 31. Kf3 {[%emt 0:00:08]} Kf6 {[%emt 0:01:14]} 32. Rc7 {[%emt 0:00:16]} Ke5 1/2-1/2

[Event "CZE-ch Youth B12 2022"]
[Site "Luhacovice"]
[Date "2022.03.14"]
[Round "3.8"]
[White "Stejskal, Jakub"]
[Black "Chon, Jeremy"]
[Result "1/2-1/2"]
[ECO "B38"]
[WhiteElo "1557"]
[BlackElo "1455"]
[Annotator "NA"]
[PlyCount "116"]
[EventDate "2022.03.12"]
[EventType "swiss"]
[EventCountry "CZE"]
[SourceTitle "playchess.com"]
[Source "ChessBase"]
[SourceQuality "1"]
[TimeControl "5400+30"]

1. e4 {[%emt 1:27:52]} c5 {[%emt 1:27:50]} 2. Nf3 {[%emt 0:00:30]} g6 {[%emt 0:00:00]} 3. d4 {[%emt 0:00:00]} cxd4 {[%emt 0:00:00]} 4. Nxd4 {[%emt 0:00:00]} Bg7 {[%emt 0:00:00]} 5. c4 {[%emt 0:00:00]} Nc6 {[%emt 0:00:00]} 6. Be3 {[%emt 0:00:00]} e6 {[%emt 0:00:00]} 7. Nc3 {[%emt 0:00:00]} Nge7 {[%emt 0:00:00]} 8. Qd2 {[%emt 0:00:00]} O-O {[%emt 0:00:00]} 9. Be2 {[%emt 0:00:00]} d5 {[%emt 0:00:00]} 10. exd5 {[%emt 0:00:00]} exd5 {[%emt 0:00:00]} 11. Rd1 {[%emt 0:00:00]} dxc4 {[%emt 0:00:00]} 12. Bxc4 {[%emt 0:00:00]} Nf5 {[%emt 0:00:00]} 13. Nxf5 {[%emt 0:00:00]} Bxf5 {[%emt 0:00:00]} 14. Nd5 {[%emt 0:00:00]} Be4 {[%emt 0:00:00]} 15. O-O Bxd5 {[%emt 0:00:00]} 16. Bxd5 {[%emt 0:00:00]} Qf6 {[%emt 0:00:00]} 17. b3 {[%emt 0:00:00]} Rac8 {[%emt 0:00:00]} 18. Bg5 {[%emt 0:00:00]} Qf5 {[%emt 0:00:00]} 19. Be3 {[%emt 0:00:00]} b6 {[%emt 0:00:00]} 20. Qd3 {[%emt 0:00:00]} Qxd3 {[%emt 0:00:00]} 21. Rxd3 {[%emt 0:00:00]} Nb4 {[%emt 0:00:00]} 22. Rd2 {[%emt 0:00:00]} Bc3 {[%emt 0:00:00]} 23. Rdd1 {[%emt 0:00:00]} Nxa2 {[%emt 0:00:00]} 24. Bd4 {[%emt 0:00:00]} Rcd8 {[%emt 0:00:00]} 25. Be3 {[%emt 0:00:00]} Nb4 {[%emt 0:00:00]} 26. Bc4 {[%emt 0:00:00]} Bf6 {[%emt 0:00:00]} 27. Rxd8 {[%emt 0:00:00]} Rxd8 {[%emt 0:00:00]} 28. g3 {[%emt 0:00:00]} Nd5 {[%emt 0:00:00]} 29. Bxd5 {[%emt 0:00:00]} Rxd5 {[%emt 0:00:00]} 30. Rc1 {[%emt 0:00:00]} Kg7 {[%emt 0:00:00]} 31. Rc7 {[%emt 0:00:00]} Rb5 {[%emt 0:00:00]} 32. Rxa7 {[%emt 0:00:00]} Rxb3 {[%emt 0:00:00]} 33. Rb7 {[%emt 0:00:00]} b5 {[%emt 0:00:00]} 34. Bd2 {[%emt 0:00:00]} Rb2 {[%emt 0:00:00]} 35. Ba5 {[%emt 0:00:00]} Bd4 {[%emt 0:00:00]} 36. Kh1 {[%emt 0:00:00]} Rb1+ {[%emt 0:00:00]} 37. Kg2 {[%emt 0:00:00]} Rb2 {[%emt 0:00:00]} 38. Be1 {[%emt 0:00:00]} Rb1 {[%emt 0:00:00]} 39. Ba5 {[%emt 0:00:00]} Rb3 {[%emt 0:00:00]} 40. Be1 {[%emt 0:00:00]} Bc5 {[%emt 0:00:00]} 41. Bd2 {[%emt 0:00:02]} b4 {[%emt 0:00:00]} 42. Rb5 {[%emt 0:00:51]} Rb2 {[%emt 0:00:15]} 43. Be1 {[%emt 0:01:23]} Re2 {[%emt 0:04:33]} 44. Kf1 {[%emt 0:00:25]} Rc2 {[%emt 0:01:16]} 45. Kg1 {[%emt 0:01:59]} Rc1 {[%emt 0:01:16]} 46. Kf1 {[%emt 0:00:11]} Bd4 {[%emt 0:00:32]} 47. Rxb4 {[%emt 0:00:38]} Bc3 {[%emt 0:00:45]} 48. Re4 {[%emt 0:00:07]} Kf6 {[%emt 0:01:18]} 49. f3 {[%emt 0:00:58]} h5 {[%emt 0:02:36]} 50. Kf2 {[%emt 0:00:41]} Rc2+ {[%emt 0:00:57]} 51. Re2 {[%emt 0:00:24]} Bd4+ {[%emt 0:00:22]} 52. Kf1 {[%emt 0:00:08]} Rxe2 {[%emt 0:00:08]} 53. Kxe2 {[%emt 0:00:09]} Bg1 {[%emt 0:00:18]} 54. h3 {[%emt 0:01:04]} Ke5 {[%emt 0:00:40]} 55. Bf2 {[%emt 0:01:56]} Bxf2 {[%emt 0:00:42]} 56. Kxf2 {[%emt 0:00:06]} g5 {[%emt 0:04:04]} 57. Ke3 {[%emt 0:02:31]} f6 {[%emt 0:00:55]} 58. g4 {[%emt 0:03:15]} h4 {[%emt 0:02:30]} 1/2-1/2